bitfinex-derivatives/quotes_BTCF0:USTF0_20251025
["timestamp","ask_amount","ask_price","bid_price","bid_amount"]
[1761421274728,0.04668,111710.0,111700.0,0.39941814]
[1761421293446,0.07085292,111710.0,111700.0,0.39941814]
[1761421304957,0.07085292,111710.0,111700.0,0.54973491]
[1761421304958,0.02617292,111710.0,111700.0,0.54973491]
[1761421305262,0.02617292,111710.0,111700.0,0.63925161]
[1761421305464,0.03215911,111720.0,111710.0,0.05672]
[1761421305665,0.12423778,111730.0,111720.0,0.05391]
[1761421305861,0.12423778,111730.0,111720.0,0.36783]
[1761421306262,0.07599911,111730.0,111720.0,0.36783]
[1761421306462,0.07599911,111730.0,111720.0,0.37659113]
[1761421307262,0.07699911,111730.0,111720.0,0.37659113]
[1761421311370,0.09037911,111730.0,111720.0,0.37659113]
[1761421314472,0.10645867,111730.0,111720.0,0.37659113]
[1761421316173,0.10645867,111730.0,111720.0,0.37059113]
[1761421320873,0.10645867,111730.0,111720.0,0.36668113]
[1761421324569,0.09041528,111730.0,111720.0,0.36668113]
[1761421333383,0.13865395,111730.0,111720.0,0.36668113]
[1761421335086,0.10645867,111730.0,111720.0,0.36668113]
[1761421336790,0.24171309,111730.0,111720.0,0.50193555]
[1761421341997,0.10645867,111730.0,111720.0,0.50193555]
[1761421342194,0.24171309,111730.0,111720.0,0.50193555]
[1761421344487,0.24171309,111730.0,111720.0,0.36668113]
[1761421344692,0.24171309,111730.0,111720.0,0.50193555]
[1761421345699,0.27393113,111730.0,111720.0,0.50193555]
[1761421349395,0.27393113,111730.0,111720.0,0.36668113]
[1761421354303,0.22569246,111730.0,111720.0,0.044]
[1761421354496,0.24171309,111730.0,111720.0,0.044]
[1761421355702,0.24171309,111730.0,111720.0,0.05302552]
[1761421359802,0.10645867,111730.0,111720.0,0.05302552]
[1761421360008,0.24171309,111730.0,111720.0,0.18827994]
[1761421360202,0.10645867,111730.0,111720.0,0.05302552]
[1761421360405,0.27392055,111730.0,111720.0,0.05302552]
[1761421361209,0.24171309,111730.0,111720.0,0.05302552]
[1761421361608,0.24171309,111730.0,111720.0,0.18827994]
[1761421363806,0.24171309,111730.0,111720.0,0.05302552]
[1761421364012,0.24171309,111730.0,111720.0,0.18827994]
[1761421364514,0.22568167,111730.0,111720.0,0.18827994]
[1761421365811,0.22568167,111730.0,111710.0,0.39091688]
[1761421366108,0.21695007,111720.0,111710.0,0.39091688]
[1761421367616,0.21695007,111720.0,111710.0,0.39291688]
[1761421367811,0.21695007,111720.0,111710.0,0.5281713]
[1761421368418,0.21995007,111720.0,111710.0,0.5261713]
[1761421369014,0.21995007,111720.0,111710.0,0.53520991]
[1761421371818,0.21695007,111720.0,111710.0,0.53520991]
[1761421396741,0.08169565,111720.0,111710.0,0.39995549]
[1761421404448,0.08974725,111720.0,111710.0,0.36771861]
[1761421414454,0.08170301,111720.0,111710.0,0.39995549]
[1761421416957,0.08370301,111720.0,111710.0,0.39995549]
[1761421418456,0.08170301,111720.0,111710.0,0.39995549]
[1761421418656,0.08370301,111720.0,111710.0,0.39995549]
[1761421426867,0.08370301,111720.0,111710.0,0.08607549]
[1761421427165,0.08370301,111720.0,111710.0,0.36767861]
[1761421427166,0.26621199,111720.0,111710.0,0.36767861]
[1761421429263,0.23400474,111720.0,111710.0,0.36767861]
[1761421436173,0.23400474,111720.0,111710.0,0.0448]
[1761421436477,0.24204898,111720.0,111710.0,0.0448]
[1761421436782,0.24204898,111720.0,111710.0,0.05383076]
[1761421438570,0.24204898,111720.0,111710.0,0.0448]
[1761421439186,0.24204898,111720.0,111710.0,0.0536519]
[1761421447295,0.24204898,111720.0,111710.0,0.0448]
[1761421447697,0.24204898,111720.0,111710.0,0.0222]
[1761421448396,0.29028765,111720.0,111710.0,0.0222]
[1761421449295,0.24204898,111720.0,111710.0,0.0222]
[1761421452903,0.09174725,111720.0,111710.0,0.0222]
[1761421453198,0.24204898,111720.0,111710.0,0.0453]
[1761421454598,0.29028765,111720.0,111710.0,0.0453]
[1761421455798,0.29028765,111720.0,111710.0,0.0231]
[1761421456006,0.04447,111700.0,111690.0,0.05915]
[1761421456207,0.0685897,111700.0,111690.0,0.05915]
[1761421456694,0.0685897,111700.0,111690.0,0.19564168]
[1761421457598,0.0685897,111700.0,111690.0,0.19864168]
[1761421459898,0.0685897,111700.0,111690.0,0.20754183]
[1761421461406,0.0685897,111700.0,111690.0,0.80754183]
[1761421462302,0.20389904,111700.0,111690.0,0.80754183]
[1761421464509,0.17977934,111700.0,111690.0,0.83977871]
[1761421465000,0.19351934,111700.0,111690.0,0.83977871]
[1761421465201,0.19351934,111700.0,111690.0,0.70446937]
[1761421465397,0.19351934,111700.0,111690.0,0.82672871]
[1761421468409,0.21763904,111700.0,111690.0,0.82672871]
[1761421489636,0.20389904,111700.0,111690.0,0.83977871]
[1761421491537,0.20389904,111700.0,111690.0,0.23977871]
[1761421498940,0.21788904,111700.0,111690.0,0.23977871]
[1761421501338,0.21788904,111700.0,111690.0,0.83977871]
[1761421502045,0.0825797,111700.0,111690.0,0.83977871]
[1761421502343,0.21788904,111700.0,111690.0,0.83977871]
[1761421503546,0.0825797,111700.0,111690.0,0.83977871]
[1761421506451,0.0825797,111700.0,111690.0,0.23977871]
[1761421511456,0.0825797,111700.0,111690.0,0.83977871]
[1761421514061,0.21788904,111700.0,111690.0,0.83977871]
[1761421516861,0.21788904,111700.0,111690.0,0.23977871]
[1761421518666,0.0825797,111700.0,111690.0,0.10446937]
[1761421521469,0.0825797,111700.0,111690.0,0.70446937]
[1761421531479,0.0825797,111700.0,111690.0,0.10446937]
[1761421534482,0.0241197,111700.0,111690.0,0.25481446]
[1761421539485,0.0241197,111700.0,111690.0,0.85481446]
[1761421541784,0.1008093,111710.0,111690.0,0.85481446]
[1761421541985,0.1008093,111710.0,111700.0,0.36441]
[1761421542885,0.1008093,111710.0,111700.0,0.36559234]
[1761421544482,0.0766896,111710.0,111700.0,0.36559234]
[1761421549595,0.0906796,111710.0,111700.0,0.36559234]
[1761421555300,0.0906796,111710.0,111700.0,0.35873234]
[1761421555686,0.24102469,111710.0,111700.0,0.35873234]
[1761421567006,0.24102469,111710.0,111700.0,0.04489234]
[1761421567208,0.24102469,111710.0,111700.0,0.00118234]
[1761421569010,0.28926336,111710.0,111700.0,0.00118234]
[1761421569210,0.24102469,111710.0,111700.0,0.00118234]
[1761421569810,0.29838982,111710.0,111700.0,0.00118234]
[1761421570709,0.26623022,111710.0,111700.0,0.00118234]
[1761421571008,0.87623022,111710.0,111700.0,0.00118234]
[1761421571511,0.86710376,111710.0,111700.0,0.00118234]
[1761421572704,0.87608977,111710.0,111700.0,0.00118234]
[1761421573210,0.90828784,111710.0,111700.0,0.00118234]
[1761421574314,0.05933,111690.0,111680.0,0.07764688]
[1761421575612,0.05933,111690.0,111680.0,0.07864688]
[1761421576110,0.05933,111690.0,111680.0,0.08464688]
[1761421576312,0.08347602,111690.0,111680.0,0.08464688]
[1761421576512,0.08347602,111690.0,111680.0,0.05241]
[1761421576906,0.08347602,111690.0,111680.0,0.06118914]
[1761421580714,0.21883634,111690.0,111680.0,0.06118914]
[1761421588014,0.36224533,111690.0,111680.0,0.007]
[1761421602938,0.05675,111670.0,111660.0,0.04408]
[1761421603231,0.19211032,111670.0,111660.0,0.04408]
[1761421604034,0.19211032,111670.0,111660.0,0.04608]
[1761421604238,0.19211032,111670.0,111660.0,0.06108]
[1761421605538,0.19211032,111670.0,111660.0,0.19644032]
[1761421605841,0.19211032,111670.0,111660.0,0.06108]
[1761421606140,0.19211032,111670.0,111660.0,0.07017854]
[1761421609344,0.21622911,111670.0,111660.0,0.07017854]
[1761421614047,0.21622911,111670.0,111660.0,0.20553886]
[1761421619252,0.21622911,111670.0,111660.0,0.07017854]
[1761421619451,0.21622911,111670.0,111660.0,0.20553886]
[1761421621655,0.21626519,111670.0,111660.0,0.20553886]
[1761421628159,0.21626519,111670.0,111660.0,0.23777574]
[1761421634461,0.08090487,111670.0,111660.0,0.23777574]
[1761421634759,0.06829487,111670.0,111660.0,0.43412327]
[1761421635157,0.04414,111670.0,111660.0,0.29876295]
[1761421635353,0.04414,111670.0,111660.0,0.43412327]
[1761421635559,0.04414,111670.0,111660.0,0.74804327]
[1761421635764,0.04414,111670.0,111660.0,0.61268295]
[1761421635963,0.04414,111670.0,111660.0,0.74804327]
[1761421636160,0.04414,111670.0,111660.0,0.69977606]
[1761421636561,0.04414,111670.0,111660.0,0.74804327]
[1761421637162,0.04414,111670.0,111660.0,0.69977606]
[1761421639565,0.04414,111670.0,111660.0,1.29977606]
[1761421641665,0.06895956,111680.0,111660.0,0.69977606]
[1761421641859,0.08124487,111680.0,111670.0,0.18086032]
[1761421642659,0.08124487,111680.0,111670.0,0.0455]
[1761421643669,0.08124487,111680.0,111670.0,0.0465]
[1761421644371,0.08124487,111680.0,111670.0,0.0495]
[1761421645669,0.08124451,111680.0,111670.0,0.0495]
[1761421655881,0.08124451,111680.0,111670.0,0.04812]
[1761421663084,0.1134392,111680.0,111670.0,0.04812]
[1761421671191,0.1134392,111680.0,111670.0,0.08035688]
[1761421671691,0.1134392,111680.0,111670.0,0.04812]
[1761421672191,0.1134392,111680.0,111670.0,0.08035688]
[1761421684698,0.08928469,111680.0,111670.0,0.04812]
[1761421694702,0.11344848,111680.0,111670.0,0.04812]
[1761421698502,0.11344848,111680.0,111670.0,0.08035688]
[1761421700604,0.11344848,111680.0,111670.0,0.04812]
[1761421702804,0.11344848,111680.0,111670.0,0.18348924]
[1761421702999,0.11344848,111680.0,111670.0,0.21572612]
[1761421705506,0.08125379,111680.0,111670.0,0.21572612]
[1761421707908,0.11344848,111680.0,111670.0,0.21572612]
[1761421708909,0.11344848,111680.0,111670.0,0.52960612]
[1761421711308,0.08125379,111680.0,111670.0,0.39423688]
[1761421711506,0.22465393,111680.0,111670.0,0.362]
[1761421712002,0.22465393,111680.0,111670.0,0.49736924]
[1761421712205,0.24881918,111680.0,111670.0,0.49736924]
[1761421713210,0.11344994,111680.0,111670.0,0.49736924]
[1761421713408,0.24881918,111680.0,111670.0,0.49736924]
[1761421714814,0.24881918,111680.0,111670.0,0.362]
[1761421715312,0.24881918,111680.0,111670.0,0.49736924]
[1761421716415,0.24550258,111680.0,111670.0,0.49736924]
[1761421717719,0.24550258,111680.0,111670.0,0.362]
[1761421718020,0.24550258,111680.0,111670.0,0.49736924]
[1761421719119,0.26966334,111680.0,111670.0,0.49736924]
[1761421721212,0.24550258,111680.0,111670.0,0.49736924]
[1761421722613,0.11013334,111680.0,111670.0,0.49736924]
[1761421722812,0.24550258,111680.0,111670.0,0.49736924]
[1761421723321,0.26966242,111680.0,111670.0,0.49736924]
[1761421723522,0.24550258,111680.0,111670.0,0.49736924]
[1761421723920,0.26966242,111680.0,111670.0,0.49736924]
[1761421724121,0.24550258,111680.0,111670.0,0.49736924]
[1761421724310,0.26966229,111680.0,111670.0,0.49736924]
[1761421724618,0.24550258,111680.0,111670.0,0.49736924]
[1761421727620,0.24550258,111680.0,111670.0,0.18348924]
[1761421727810,0.24550258,111680.0,111670.0,0.49736924]
[1761421734523,0.26966321,111680.0,111670.0,0.49736924]
[1761421737439,0.24550258,111680.0,111670.0,0.49736924]
[1761421739940,0.24550431,111680.0,111670.0,0.49736924]
[1761421742440,0.11013507,111680.0,111670.0,0.49736924]
[1761421742641,0.24550431,111680.0,111670.0,0.49736924]
[1761421743436,0.24550431,111680.0,111670.0,0.18348924]
[1761421743637,0.24550431,111680.0,111670.0,0.362]
[1761421744141,0.24550431,111680.0,111670.0,0.04812]
[1761421745342,0.11013507,111680.0,111670.0,0.04812]
[1761421745543,0.24550431,111680.0,111670.0,0.04812]
[1761421746445,0.22465393,111680.0,111670.0,0.04812]
[1761421748649,0.08928469,111680.0,111670.0,0.04812]
[1761421749243,0.22465393,111680.0,111670.0,0.04812]
[1761421756543,0.22465393,111680.0,111670.0,0.18348924]
[1761421757545,0.22465393,111680.0,111670.0,0.04812]
[1761421757744,0.22465393,111680.0,111670.0,0.18348924]
[1761421758044,0.22465393,111680.0,111670.0,0.04812]
[1761421764644,0.08928469,111680.0,111670.0,0.04812]
[1761421783860,0.13752336,111680.0,111670.0,0.04812]
[1761421784559,0.08928469,111680.0,111670.0,0.04812]
[1761421806478,0.11008555,111680.0,111670.0,0.04812]
[1761421809886,0.26050068,111680.0,111670.0,0.04812]
[1761421810789,0.11008555,111680.0,111670.0,0.04812]
[1761421813090,0.26050068,111680.0,111670.0,0.04812]
[1761421816694,0.30873935,111680.0,111670.0,0.04812]
[1761421818197,0.26050068,111680.0,111670.0,0.04812]
[1761421819601,0.26050068,111680.0,111670.0,0.02618]
[1761421820600,0.11008555,111680.0,111670.0,0.04885]
[1761421824104,0.08928469,111680.0,111670.0,0.04885]
[1761421824299,0.11008491,111680.0,111670.0,0.04885]
[1761421824908,0.24546691,111680.0,111670.0,0.04885]
[1761421837716,0.24546691,111680.0,111670.0,0.004]
[1761421854532,0.24546691,111680.0,111670.0,0.02624]
[1761421859235,0.24546691,111680.0,111670.0,0.04843]
[1761421861240,0.24546691,111680.0,111670.0,0.02624]
[1761421864643,0.24546691,111680.0,111670.0,0.004]
[1761421866644,0.22466669,111680.0,111670.0,0.004]
[1761421884661,0.23972824,111680.0,111670.0,0.004]
[1761421904186,0.08928469,111680.0,111670.0,0.004]
[1761421904481,0.23972824,111680.0,111670.0,0.004]
[1761421909286,0.28796691,111680.0,111670.0,0.004]
[1761421918496,0.23972824,111680.0,111670.0,0.004]
[1761421925805,0.25577222,111680.0,111670.0,0.004]
[1761421928511,0.20753355,111680.0,111670.0,0.004]
[1761421929712,0.28807218,111680.0,111670.0,0.004]
[1761421931108,0.25585673,111680.0,111670.0,0.004]
[1761421931415,0.28806697,111680.0,111670.0,0.004]
[1761421931604,0.25585673,111680.0,111670.0,0.004]
[1761421932002,0.28974212,111680.0,111650.0,0.03233476]
[1761421932207,0.01382,111650.0,111640.0,0.07714223]
[1761421932410,0.23402253,111650.0,111640.0,0.0449]
[1761421932909,0.25492512,111650.0,111640.0,0.0449]
[1761421933313,0.25501568,111650.0,111640.0,0.0449]
[1761421933512,0.25701568,111650.0,111640.0,0.0449]
[1761421935314,0.25701568,111650.0,111640.0,0.05396358]
[1761421936112,0.21196411,111650.0,111640.0,0.05396358]
[1761421936417,0.23282905,111650.0,111640.0,0.05396358]
[1761421936908,0.23282905,111650.0,111620.0,0.2351669]
[1761421937106,0.05943,111630.0,111620.0,0.0449]
[1761421938617,0.05943,111630.0,111620.0,0.0459]
[1761421939517,0.05943,111630.0,111620.0,0.05472161]
[1761421939720,0.05943,111630.0,111620.0,0.05572161]
[1761421942420,0.05943,111630.0,111620.0,0.80616516]
[1761421942813,0.04561,111640.0,111630.0,0.0583]
[1761421943020,0.06646205,111640.0,111630.0,0.20874355]
[1761421943221,0.06646146,111640.0,111630.0,0.97214]
[1761421944113,0.06846146,111640.0,111630.0,0.97314]
[1761421944313,0.02285146,111640.0,111630.0,0.52358355]
[1761421944517,0.02285146,111640.0,111630.0,0.61315595]
[1761421944710,0.002,111640.0,111630.0,0.61315595]
[1761421946724,0.002,111640.0,111630.0,0.73351312]
[1761421952127,0.002,111640.0,111630.0,0.78187647]
[1761421954723,0.002,111640.0,111630.0,1.38187647]
[1761421962339,0.02303234,111640.0,111630.0,1.38187647]
[1761421964642,0.002,111640.0,111630.0,1.38187647]
[1761421971344,0.02303897,111640.0,111630.0,1.38187647]
[1761421977352,0.02303897,111640.0,111630.0,1.33351312]
[1761421986557,0.07011843,111670.0,111640.0,0.1410744]
[1761421986854,0.11640843,111670.0,111660.0,0.18003036]
[1761421987255,0.08419986,111670.0,111660.0,0.18003036]
[1761421987556,0.08419986,111670.0,111660.0,0.18889086]
[1761421988455,0.09419986,111670.0,111660.0,0.18889086]
[1761421988857,0.08419986,111670.0,111660.0,0.18889086]
[1761421989158,0.09419986,111670.0,111660.0,0.18889086]
[1761421991062,0.08919986,111670.0,111660.0,0.18889086]
[1761421992171,0.68919986,111670.0,111660.0,0.18889086]
[1761421996870,0.08919986,111670.0,111660.0,0.18889086]
[1761421998372,0.1100576,111670.0,111660.0,0.18889086]
[1761422001175,0.1100576,111670.0,111660.0,0.0534905]
[1761422001375,0.1100576,111670.0,111660.0,0.18889086]
[1761422002174,0.7100576,111670.0,111660.0,0.18889086]
[1761422008776,0.7100576,111670.0,111660.0,0.0534905]
[1761422012181,0.74226617,111670.0,111660.0,0.0534905]
[1761422013079,0.74226617,111670.0,111660.0,0.0315505]
[1761422014683,0.7100576,111670.0,111660.0,0.0315505]
[1761422015180,0.74226617,111670.0,111660.0,0.0315505]
[1761422022187,0.74226617,111670.0,111660.0,0.0088605]
[1761422022487,0.05711,111660.0,111650.0,0.40693652]
[1761422022675,0.07796774,111660.0,111650.0,0.40693652]
[1761422023985,0.07996774,111660.0,111650.0,0.40693652]
[1761422025786,0.07996774,111660.0,111650.0,0.41597301]
[1761422026089,0.07996774,111660.0,111650.0,0.50552941]
[1761422028587,0.07996774,111660.0,111650.0,0.51238941]
[1761422028782,0.07996774,111660.0,111650.0,0.66280633]
[1761422038794,0.07996774,111660.0,111650.0,0.57324993]
[1761422038995,0.07996774,111660.0,111650.0,0.56638993]
[1761422040602,0.07996774,111660.0,111650.0,0.56634993]
[1761422041101,0.07996774,111660.0,111650.0,0.41593301]
[1761422042104,0.07996774,111660.0,111650.0,0.66276633]
[1761422042906,0.07996774,111660.0,111650.0,0.25940993]
[1761422043114,0.07996774,111660.0,111650.0,0.57320993]
[1761422044698,0.1040576,111660.0,111650.0,0.52483341]
[1761422046410,0.0912576,111660.0,111650.0,0.52483341]
[1761422047102,0.0469476,111660.0,111650.0,0.61438981]
[1761422048000,0.0689276,111660.0,111650.0,0.61438981]
[1761422051212,0.04483774,111660.0,111650.0,0.61438981]
[1761422054708,0.04483774,111660.0,111650.0,0.66276633]
[1761422055908,0.06809774,111660.0,111650.0,0.66276633]
[1761422058023,0.06809774,111660.0,111650.0,0.57320993]
[1761422058919,0.08075774,111660.0,111650.0,0.57320993]
[1761422062522,0.08075774,111660.0,111650.0,0.66276633]
[1761422066222,0.06809774,111660.0,111650.0,0.66276633]
[1761422068731,0.06809774,111660.0,111650.0,0.64773417]
[1761422070530,0.06809774,111660.0,111650.0,0.55817777]
[1761422072737,0.08155774,111660.0,111650.0,0.55131777]
[1761422085245,0.08155774,111660.0,111650.0,0.55817777]
[1761422085747,0.06809774,111660.0,111650.0,0.55817777]
[1761422086047,0.02285774,111660.0,111650.0,0.55817777]
[1761422086248,0.04519774,111660.0,111650.0,0.55817777]
[1761422086542,0.06663774,111660.0,111650.0,0.55817777]
[1761422094054,0.06671249,111660.0,111650.0,0.55817777]
[1761422099158,0.06671249,111660.0,111650.0,0.42279301]
[1761422099363,0.06671249,111660.0,111650.0,0.55817777]
[1761422100254,0.02293249,111660.0,111650.0,0.64773427]
[1761422102169,0.02418075,111670.0,111660.0,0.0895485]
[1761422102366,0.02418075,111680.0,111670.0,0.05643]
[1761422102668,0.02418075,111680.0,111670.0,0.50557476]
[1761422102869,0.04638075,111680.0,111670.0,0.50557476]
[1761422103268,0.0222,111680.0,111670.0,0.50557476]
[1761422104465,0.0232,111680.0,111670.0,0.50557476]
[1761422106567,0.0232,111680.0,111670.0,0.53776988]
[1761422106868,0.04505,111680.0,111670.0,0.53776988]
[1761422110767,0.001,111680.0,111670.0,0.53776988]
[1761422110973,0.04505,111680.0,111670.0,0.53776988]
[1761422121490,0.04505,111680.0,111670.0,0.40238512]
[1761422121685,0.04505,111680.0,111670.0,0.53776988]
[1761422130789,0.04505,111680.0,111670.0,0.55275787]
[1761422132387,0.04505,111680.0,111670.0,0.56892588]
[1761422134687,0.06918703,111680.0,111670.0,0.52056275]
[1761422134893,0.06918703,111680.0,111670.0,0.55280886]
[1761422144795,0.04505,111680.0,111670.0,0.56892588]
[1761422151798,0.04505,111680.0,111670.0,0.41855313]
[1761422152002,0.04505,111680.0,111670.0,0.56892588]
[1761422164821,0.001,111680.0,111670.0,0.65846638]
[1761422167430,0.001,111680.0,111670.0,0.56892588]
[1761422168831,0.02233,111680.0,111670.0,0.56892588]
[1761422170818,0.02233,111680.0,111670.0,0.52056275]
[1761422171527,0.02233,111680.0,111670.0,0.56890928]
[1761422173934,0.04386,111680.0,111670.0,0.56890928]
[1761422184842,0.04386,111680.0,111670.0,0.55279761]
[1761422185151,0.04386,111680.0,111670.0,0.40242486]
[1761422192755,0.04386,111680.0,111670.0,0.53776714]
[1761422192957,0.04386,111680.0,111670.0,0.53768714]
[1761422193964,0.04386,111680.0,111670.0,0.22400714]
[1761422194257,0.04386,111680.0,111670.0,0.53768714]
[1761422194663,0.04386,111680.0,111670.0,0.22400714]
[1761422194960,0.04386,111680.0,111670.0,0.55379881]
[1761422207271,0.05651,111680.0,111670.0,0.54045881]
[1761422220886,0.04386,111680.0,111670.0,0.55392881]
[1761422224784,0.04386,111680.0,111670.0,0.58616445]
[1761422232085,0.04386,111680.0,111670.0,0.55392881]
[1761422232985,0.04386,111680.0,111670.0,0.50558228]
[1761422240600,0.04386,111680.0,111670.0,0.19190228]
[1761422240790,0.04386,111680.0,111670.0,0.50558228]
[1761422241999,0.04386,111680.0,111670.0,0.19190228]
[1761422242298,0.04386,111680.0,111670.0,0.50558228]
[1761422242499,0.04386,111680.0,111670.0,0.55393575]
[1761422244603,0.04386,111680.0,111670.0,0.24025575]
[1761422244797,0.04386,111680.0,111670.0,0.55393575]
[1761422252697,0.04386,111680.0,111670.0,0.41859347]
[1761422254907,0.04386,111680.0,111670.0,0.56897556]
[1761422265914,0.06804283,111680.0,111670.0,0.55285981]
[1761422274424,0.0680444,111680.0,111670.0,0.55285981]
[1761422274622,0.0680444,111680.0,111670.0,0.40247772]
[1761422275833,0.04386,111680.0,111670.0,0.41859347]
[1761422305853,0.0680444,111680.0,111670.0,0.4508299]
[1761422309859,0.0680444,111680.0,111670.0,0.60121199]
[1761422312655,0.0680444,111680.0,111670.0,0.58617484]
[1761422314764,0.04386,111680.0,111670.0,0.58617484]
[1761422315866,0.04386,111680.0,111670.0,0.55393841]
[1761422325873,0.04386,111680.0,111670.0,0.58617364]
[1761422326269,0.04386,111680.0,111670.0,0.55393841]
[1761422339184,0.04386,111680.0,111670.0,0.24025841]
[1761422339384,0.04386,111680.0,111670.0,0.55389841]
[1761422355893,0.0680444,111680.0,111670.0,0.53778193]
[1761422362002,0.0680444,111680.0,111670.0,0.5861354]
[1761422365808,0.04386,111680.0,111670.0,0.55389841]
[1761422374713,0.04386,111680.0,111670.0,0.56893429]
[1761422384616,0.04386,111680.0,111670.0,0.41855347]
[1761422386917,0.04386,111680.0,111670.0,0.56893429]
[1761422395827,0.0680444,111680.0,111670.0,0.55281722]
[1761422396524,0.0680444,111680.0,111670.0,0.4024364]
[1761422401830,0.0251844,111680.0,111670.0,0.4024364]
[1761422402128,0.0251844,111680.0,111670.0,0.64235742]
[1761422402727,0.0251844,111680.0,111670.0,0.55281722]
[1761422405336,0.001,111680.0,111670.0,0.55281722]
[1761422405836,0.001,111680.0,111670.0,0.56893429]
[1761422408934,0.001,111680.0,111670.0,0.65847439]
[1761422409143,0.001,111680.0,111670.0,0.61012092]
[1761422410332,0.001,111680.0,111670.0,0.4607401]
[1761422410544,0.001,111680.0,111670.0,0.61112092]
[1761422410934,0.001,111680.0,111670.0,0.61012092]
[1761422411135,0.001,111680.0,111670.0,0.61108092]
[1761422411538,0.05704,111700.0,111670.0,0.61108092]
[1761422411738,0.05704,111700.0,111690.0,0.07597689]
[1761422412039,0.05704,111700.0,111690.0,0.38957689]
[1761422412942,0.06004,111700.0,111690.0,0.38957689]
[1761422413444,0.06004,111700.0,111690.0,0.35738]
[1761422420945,0.06004,111700.0,111690.0,0.36424]
[1761422423737,0.04693,111700.0,111690.0,0.36424]
[1761422432253,0.04693,111700.0,111690.0,0.39643689]
[1761422434755,0.04693,111700.0,111690.0,0.53174393]
[1761422436956,0.003,111700.0,111690.0,0.53174393]
[1761422437364,0.0271844,111700.0,111690.0,0.53174393]
[1761422441161,0.0493544,111700.0,111690.0,0.53174393]
[1761422441356,0.0271844,111700.0,111690.0,0.53174393]
[1761422445862,0.05942818,111700.0,111690.0,0.53174393]
[1761422447569,0.0271844,111700.0,111690.0,0.53174393]
[1761422448270,0.05942818,111700.0,111690.0,0.53174393]
[1761422450070,0.0271844,111700.0,111690.0,0.53174393]
[1761422451766,0.0271844,111700.0,111690.0,0.66705097]
[1761422451966,0.0271844,111700.0,111690.0,0.53174393]
[1761422452165,0.0271844,111700.0,111690.0,0.66705097]
[1761422460068,0.0493544,111700.0,111690.0,0.66705097]
[1761422460270,0.0271844,111700.0,111690.0,0.66705097]
[1761422465182,0.0501944,111700.0,111690.0,0.66705097]
[1761422466880,0.0481944,111700.0,111690.0,0.66705097]
[1761422467083,0.0251844,111700.0,111690.0,0.75657527]
[1761422472797,0.0481944,111700.0,111690.0,0.75657527]
[1761422474101,0.0700344,111700.0,111690.0,0.39643689]
[1761422474301,0.0700344,111700.0,111690.0,0.53174393]
[1761422474891,0.0700344,111700.0,111690.0,0.39643689]
[1761422475092,0.0700344,111700.0,111690.0,0.53174393]
[1761422478304,0.0700344,111700.0,111690.0,0.66705097]
[1761422479199,0.04585,111700.0,111690.0,0.66705097]
[1761422479398,0.04585,111700.0,111690.0,0.63485408]
[1761422479598,0.04585,111700.0,111690.0,0.36424]
[1761422479804,0.04585,111700.0,111690.0,0.49954704]
[1761422481203,0.07002977,111700.0,111690.0,0.53177307]
[1761422481403,0.07002977,111700.0,111690.0,0.66708011]
[1761422495112,0.07002977,111700.0,111690.0,0.75660441]
[1761422496816,0.07002977,111700.0,111690.0,0.63631142]
[1761422499617,0.08379977,111700.0,111690.0,0.38956603]
[1761422499921,0.08379977,111700.0,111690.0,0.53988712]
[1761422500114,0.08379977,111700.0,111690.0,0.54676712]
[1761422505324,0.08379977,111700.0,111690.0,0.53988712]
[1761422505517,0.08379977,111700.0,111690.0,0.38956603]
[1761422519431,0.08379977,111700.0,111690.0,0.36686603]
[1761422519634,0.08379977,111700.0,111690.0,0.38893603]
[1761422523140,0.08379977,111700.0,111690.0,0.36686603]
[1761422523324,0.23412086,111700.0,111690.0,0.36690603]
[1761422523631,0.08379977,111700.0,111690.0,0.39007603]
[1761422556654,0.21912793,111700.0,111690.0,0.39007603]
[1761422585878,0.25136763,111700.0,111690.0,0.39007603]
[1761422589984,0.21912793,111700.0,111690.0,0.39007603]
[1761422595791,0.25136763,111700.0,111690.0,0.39007603]
[1761422595992,0.21912793,111700.0,111690.0,0.39007603]
[1761422609604,0.22912793,111700.0,111690.0,0.07647603]
[1761422609810,0.05741,111680.0,111670.0,0.03894]
[1761422610015,0.21691866,111680.0,111670.0,0.35258]
[1761422610307,0.19273816,111680.0,111670.0,0.48790816]
[1761422610709,0.21379072,111680.0,111670.0,0.48790816]
[1761422611095,0.21379072,111680.0,111670.0,0.48890816]
[1761422611305,0.21379072,111680.0,111670.0,0.49390816]
[1761422612110,0.21379072,111680.0,111670.0,0.49290816]
[1761422612310,0.21879072,111680.0,111670.0,0.48790816]
[1761422613702,0.21379072,111680.0,111670.0,0.48790816]
[1761422613903,0.21879072,111680.0,111670.0,0.48790816]
[1761422614810,0.21879072,111680.0,111670.0,0.03894]
[1761422615008,0.24297122,111680.0,111670.0,0.03894]
[1761422615411,0.24297122,111680.0,111670.0,0.35262]
[1761422616303,0.21879072,111680.0,111670.0,0.35262]
[1761422616713,0.08346256,111680.0,111670.0,0.35262]
[1761422616903,0.10764306,111680.0,111670.0,0.35262]
[1761422617413,0.08346256,111680.0,111670.0,0.35262]
[1761422619918,0.08346256,111680.0,111670.0,0.03894]
[1761422622105,0.23388271,111680.0,111670.0,0.03894]
[1761422622619,0.08346256,111680.0,111670.0,0.03894]
[1761422623016,0.10764306,111680.0,111670.0,0.03894]
[1761422640626,0.13988372,111680.0,111670.0,0.03894]
[1761422642529,0.29030387,111680.0,111670.0,0.03894]
[1761422643027,0.13988372,111680.0,111670.0,0.03894]
[1761422644230,0.11570322,111680.0,111670.0,0.03894]
[1761422661344,0.09465066,111680.0,111670.0,0.03894]
[1761422661953,0.06241,111680.0,111670.0,0.03894]
[1761422663850,0.11587176,111680.0,111670.0,0.03894]
[1761422664150,0.0946471,111680.0,111670.0,0.03894]
[1761422664447,0.06241,111680.0,111670.0,0.03894]
[1761422665250,0.11587145,111680.0,111670.0,0.03894]
[1761422667550,0.2662916,111680.0,111670.0,0.03894]
[1761422670638,0.11587145,111680.0,111670.0,0.03894]
[1761422678649,0.25123772,111680.0,111670.0,0.17430627]
[1761422701566,0.10780118,111680.0,111670.0,0.17430627]
[1761422702571,0.02622454,111680.0,111670.0,0.31222034]
[1761422702765,0.02622454,111680.0,111670.0,0.91222034]
[1761422702966,0.02622454,111680.0,111670.0,0.31222034]
[1761422703266,0.08181664,111700.0,111690.0,0.03894]
[1761422703470,0.10289247,111700.0,111690.0,0.48798627]
[1761422704374,0.10289247,111700.0,111690.0,0.62335254]
[1761422704570,0.11289247,111700.0,111690.0,0.62335254]
[1761422704870,0.11289247,111700.0,111690.0,0.48798627]
[1761422706374,0.11389247,111700.0,111690.0,0.48798627]
[1761422707177,0.08972583,111700.0,111690.0,0.48798627]